bitfinex-derivatives/quotes_BTCF0:USTF0_20241023
["timestamp","ask_amount","ask_price","bid_price","bid_amount"]
[1729647110296,0.223933,67339.0,67338.0,0.059634]
[1729647113588,0.223933,67339.0,67338.0,0.16234876]
[1729647114196,0.223933,67339.0,67338.0,0.16234872]
[1729647117298,0.223933,67339.0,67338.0,0.25102535]
[1729647119387,0.223933,67339.0,67338.0,0.16234872]
[1729647120697,0.223933,67339.0,67338.0,0.059634]
[1729647121498,0.113933,67339.0,67338.0,0.059634]
[1729647128599,0.113933,67339.0,67338.0,0.2849919]
[1729647133905,0.113933,67339.0,67338.0,0.2255579]
[1729647133906,0.223933,67339.0,67338.0,0.2255579]
[1729647134207,0.059434,67338.0,67337.0,0.0884505]
[1729647134402,0.05944,67331.0,67330.0,0.0004]
[1729647134711,0.16984,67331.0,67330.0,0.0004]
[1729647135707,0.16984,67331.0,67330.0,0.05960382]
[1729647136607,0.16984,67331.0,67330.0,0.0004]
[1729647138703,0.19604975,67331.0,67330.0,0.0004]
[1729647141507,0.30604975,67331.0,67327.0,0.05920382]
[1729647141818,0.059445,67325.0,67324.0,0.0002]
[1729647142117,0.059447,67323.0,67322.0,0.0002]
[1729647142313,0.059847,67323.0,67322.0,0.0002]
[1729647145111,0.505447,67323.0,67322.0,0.0002]
[1729647146122,0.5327726,67323.0,67322.0,0.0002]
[1729647146612,0.6427726,67323.0,67322.0,0.0002]
[1729647147116,0.5327726,67323.0,67322.0,0.0002]
[1729647149221,0.5327726,67323.0,67313.0,0.0002]
[1729647149222,0.059454,67315.0,67313.0,0.0002]
[1729647149519,0.740054,67315.0,67313.0,0.0002]
[1729647152907,0.740094,67315.0,67313.0,0.0002]
[1729647161529,0.76664888,67315.0,67313.0,0.0002]
[1729647163623,1.21232888,67315.0,67313.0,0.0002]
[1729647165420,0.059455,67314.0,67313.0,0.0002]
[1729647165618,0.81719488,67315.0,67298.0,0.00222878]
[1729647165826,0.530268,67299.0,67298.0,0.00222878]
[1729647166025,0.640268,67299.0,67298.0,0.00222878]
[1729647166818,0.059475,67292.0,67291.0,0.1159]
[1729647167024,0.530675,67292.0,67291.0,0.1159]
[1729647167227,0.059476,67291.0,67290.0,0.00128]
[1729647167433,0.059478,67288.0,67285.0,0.057]
[1729647167728,0.1104,67286.0,67285.0,0.11648]
[1729647168632,0.16988,67286.0,67285.0,0.11648]
[1729647169532,0.27988,67286.0,67285.0,0.057]
[1729647170130,0.16988,67286.0,67285.0,0.057]
[1729647170829,0.27988,67286.0,67285.0,0.057]
[1729647171428,0.16988,67286.0,67285.0,0.057]
[1729647176437,0.16988,67286.0,67285.0,0.116481]
[1729647178142,0.1104,67286.0,67285.0,0.116481]
[1729647178434,0.0004,67286.0,67285.0,0.116481]
[1729647179742,0.0004,67291.0,67290.0,0.059476]
[1729647179942,0.0004,67291.0,67290.0,0.059676]
[1729647179943,0.1104,67291.0,67290.0,0.059676]
[1729647180643,0.09868,67302.0,67298.0,0.059469]
[1729647180827,0.158146,67302.0,67301.0,0.0002]
[1729647181736,0.169466,67302.0,67301.0,0.0002]
[1729647182044,0.059476,67291.0,67290.0,0.0002]
[1729647182237,0.399476,67291.0,67290.0,0.0002]
[1729647182538,0.229876,67291.0,67290.0,0.0002]
[1729647184937,0.760676,67291.0,67290.0,0.0002]
[1729647188932,0.44714043,67291.0,67290.0,0.0002]
[1729647189139,0.689316,67291.0,67290.0,0.0002]
[1729647191039,0.590676,67291.0,67290.0,0.0002]
[1729647195048,0.590676,67291.0,67290.0,0.059676]
[1729647195447,0.590676,67291.0,67290.0,0.23604451]
[1729647195753,0.590676,67291.0,67290.0,0.16222084]
[1729647198952,0.590676,67291.0,67290.0,0.16220004]
[1729647201359,0.229876,67291.0,67290.0,0.16220004]
[1729647201843,0.229876,67291.0,67290.0,0.16216551]
[1729647202245,0.169876,67291.0,67290.0,0.16216551]
[1729647203853,0.0004,67291.0,67290.0,0.16216423]
[1729647204546,0.1104,67291.0,67290.0,0.16216423]
[1729647205755,0.1104,67291.0,67290.0,0.25059734]
[1729647208455,0.1104,67291.0,67290.0,0.2506733]
[1729647208860,0.169876,67291.0,67290.0,0.2506733]
[1729647209657,0.169876,67291.0,67290.0,0.16224019]
[1729647210458,0.059876,67291.0,67290.0,0.16224019]
[1729647210664,0.0004,67291.0,67290.0,0.2506733]
[1729647210957,0.0004,67291.0,67290.0,0.16224019]
[1729647211258,0.3608,67303.0,67302.0,0.059466]
[1729647211456,0.3608,67303.0,67302.0,0.169466]
[1729647211457,0.36156,67303.0,67302.0,0.169466]
[1729647211766,0.4708,67303.0,67302.0,0.23644034]
[1729647212456,0.4708,67303.0,67302.0,0.059666]
[1729647213758,0.0008,67322.0,67303.0,0.44572]
[1729647213951,0.0004,67323.0,67319.0,0.059451]
[1729647214153,0.0004,67323.0,67322.0,0.059448]
[1729647214357,0.11,67323.0,67322.0,0.0002]
[1729647214653,0.11,67323.0,67322.0,0.059648]
[1729647216058,0.11,67323.0,67322.0,0.08695567]
[1729647216249,0.17,67323.0,67322.0,0.08695567]
[1729647217565,0.0004,67328.0,67324.0,0.059446]
[1729647217954,0.0004,67328.0,67324.0,0.059646]
[1729647218765,0.17,67326.0,67324.0,0.059646]
[1729647219265,0.0004,67328.0,67327.0,0.059444]
[1729647219563,0.0004,67328.0,67327.0,0.420444]
[1729647219962,0.0004,67331.0,67327.0,0.8066]
[1729647220180,0.0004,67331.0,67330.0,0.420441]
[1729647220855,0.1704,67331.0,67330.0,0.420441]
[1729647234864,0.0004,67331.0,67330.0,0.420441]
[1729647235772,0.05984,67331.0,67330.0,0.420441]
[1729647236873,0.0004,67331.0,67330.0,0.420441]
[1729647238267,0.0004,67331.0,67330.0,0.530441]
[1729647239979,0.0004,67331.0,67330.0,0.55753966]
[1729647240376,0.0004,67331.0,67330.0,0.61753966]
[1729647240682,0.0004,67331.0,67330.0,0.69152924]
[1729647241277,0.0004,67337.0,67336.0,0.059436]
[1729647241472,0.0004,67337.0,67336.0,0.059636]
[1729647242173,0.0004,67337.0,67336.0,0.420436]
[1729647243376,0.0004,67337.0,67336.0,0.52162079]
[1729647244081,0.0004,67337.0,67336.0,0.5215457]
[1729647245586,0.0004,67337.0,67336.0,0.1607457]
[1729647246278,0.0004,67337.0,67336.0,0.24966133]
[1729647246481,0.0004,67337.0,67336.0,0.1607457]
[1729647246683,0.0004,67337.0,67336.0,0.24966133]
[1729647247376,0.0004,67337.0,67336.0,0.1607457]
[1729647248182,0.0004,67337.0,67336.0,0.24965996]
[1729647248383,0.0004,67337.0,67336.0,0.1607457]
[1729647248778,0.0004,67337.0,67336.0,0.059636]
[1729647251499,0.0004,67337.0,67336.0,0.229636]
[1729647253401,0.0004,67337.0,67336.0,0.25606765]
[1729647254097,0.0004,67337.0,67336.0,0.61686765]
[1729647255695,0.0004,67337.0,67336.0,0.83797548]
[1729647256005,0.0004,67337.0,67336.0,1.19877548]
[1729647256694,0.0004,67342.0,67339.0,0.059433]
[1729647256894,0.0004,67342.0,67339.0,0.28074083]
[1729647257200,0.0004,67342.0,67339.0,0.72626083]
[1729647257794,0.0004,67342.0,67339.0,0.89626083]
[1729647258094,0.0004,67342.0,67339.0,0.89577954]
[1729647259088,0.0004,67342.0,67339.0,0.45025954]
[1729647260701,0.0004,67342.0,67339.0,0.81105954]
[1729647262704,0.0004,67342.0,67339.0,0.81073534]
[1729647265115,0.0004,67353.0,67340.0,0.44548]
[1729647265416,0.00262741,67359.0,67339.0,0.80150465]
[1729647265417,0.00262741,67359.0,67358.0,0.059416]
[1729647266307,0.00262741,67359.0,67358.0,0.059816]
[1729647268411,0.00262741,67359.0,67358.0,0.11889015]
[1729647269496,0.00262741,67359.0,67358.0,0.059816]
[1729647269701,0.00262741,67359.0,67358.0,0.11889015]
[1729647270698,0.11952076,67359.0,67358.0,0.059816]
[1729647270997,0.11952076,67359.0,67357.0,0.3016915]
[1729647271201,0.11952076,67359.0,67357.0,0.3611085]
[1729647271202,0.11709335,67358.0,67357.0,0.3611085]
[1729647271402,0.03319229,67358.0,67357.0,0.3611085]
[1729647271602,0.07149789,67358.0,67357.0,0.3611085]
[1729647271812,0.19603559,67358.0,67357.0,0.3611085]
[1729647272014,0.1630433,67358.0,67357.0,0.3611085]
[1729647272208,0.11512221,67358.0,67357.0,0.3611085]
[1729647274211,0.14825942,67358.0,67357.0,0.3611085]
[1729647274513,0.06952787,67358.0,67357.0,0.8065085]
[1729647274703,0.06952787,67358.0,67357.0,0.4596285]
[1729647278314,0.06952787,67358.0,67357.0,0.5696285]
[1729647278907,0.169616,67358.0,67357.0,0.3611085]
[1729647279209,0.169616,67358.0,67357.0,0.4711085]
[1729647279210,0.059616,67358.0,67357.0,0.4711085]
[1729647279405,0.0002,67358.0,67357.0,0.4711085]
[1729647280011,0.0004,67359.0,67358.0,0.059416]
[1729647280205,0.0004,67359.0,67358.0,0.059816]
[1729647285419,0.0004,67359.0,67358.0,0.13373281]
[1729647285811,0.0004,67359.0,67358.0,0.059816]
[1729647286115,0.03252848,67359.0,67358.0,0.420616]
[1729647287432,0.03252848,67359.0,67358.0,0.530616]
[1729647287722,0.03252848,67359.0,67358.0,0.420616]
[1729647288420,0.03252848,67359.0,67358.0,0.519856]
[1729647290729,0.0328214,67359.0,67358.0,0.519856]
[1729647292712,0.0328214,67359.0,67358.0,0.159056]
[1729647292913,0.0328214,67359.0,67358.0,0.880656]
[1729647293917,0.0004,67359.0,67358.0,1.10040823]
[1729647295519,0.0004,67359.0,67358.0,1.10054761]
[1729647296619,0.0004,67359.0,67358.0,0.98097327]
[1729647297434,0.0004,67359.0,67358.0,0.98093327]
[1729647297735,0.0004,67359.0,67358.0,1.21049242]
[1729647297913,0.0004,67359.0,67358.0,1.2102848]
[1729647301032,0.0004,67359.0,67358.0,0.990616]
[1729647301424,0.03317079,67359.0,67358.0,0.990616]
[1729647304933,0.03317079,67359.0,67358.0,0.269016]
[1729647305131,0.03317079,67359.0,67358.0,0.990616]
[1729647306435,0.0004,67359.0,67358.0,0.990616]
[1729647306632,0.038454,67359.0,67358.0,0.990616]
[1729647306835,0.07122479,67359.0,67358.0,0.990616]
[1729647308931,0.0002,67363.0,67362.0,0.059413]
[1729647309132,0.0002,67363.0,67362.0,0.38892188]
[1729647309330,0.0002,67363.0,67362.0,0.38932188]
[1729647310023,0.059408,67367.0,67366.0,0.059409]
[1729647310225,0.059408,67367.0,67366.0,0.52075166]
[1729647310731,0.059408,67367.0,67366.0,0.15995166]
[1729647310937,0.059408,67367.0,67366.0,0.52075166]
[1729647311633,0.059408,67367.0,67366.0,0.15995166]
[1729647311840,0.059408,67367.0,67366.0,0.52075166]
[1729647312430,0.059408,67367.0,67366.0,0.60955988]
[1729647312639,0.059408,67367.0,67366.0,0.52075166]
[1729647313231,0.059408,67367.0,67366.0,0.52055884]
[1729647315133,0.059408,67367.0,67366.0,0.54680311]
[1729647316739,0.059408,67367.0,67366.0,0.52055884]
[1729647317538,0.169408,67367.0,67366.0,0.52055884]
[1729647320743,0.059408,67367.0,67366.0,0.52055884]
[1729647322442,0.059408,67367.0,67366.0,0.52074372]
[1729647322741,0.169408,67367.0,67366.0,0.52074372]
[1729647324048,0.28585156,67367.0,67366.0,0.30169802]
[1729647324447,0.11644356,67367.0,67366.0,0.47110702]
[1729647330843,0.0002,67368.0,67366.0,0.4027005]
[1729647331152,0.0002,67368.0,67367.0,0.39113061]
[1729647332444,0.0002,67368.0,67367.0,0.28113061]
[1729647336553,0.0002,67368.0,67367.0,0.28064343]
[1729647336946,0.0002,67368.0,67367.0,0.16055585]
[1729647337150,0.0002,67368.0,67367.0,0.2492924]
[1729647337353,0.0002,67368.0,67367.0,0.16055585]
[1729647337859,0.0002,67368.0,67367.0,0.24929236]
[1729647338561,0.0002,67368.0,67367.0,0.27661524]
[1729647339057,0.0002,67368.0,67367.0,0.08713088]
[1729647339058,0.03217449,67368.0,67367.0,0.08713088]
[1729647339260,0.11488454,67368.0,67367.0,0.08713088]
[1729647341359,0.15210522,67368.0,67367.0,0.08713088]
[1729647341567,0.11498134,67368.0,67367.0,0.08713088]
[1729647342052,0.11498134,67368.0,67367.0,0.19713088]
[1729647344562,0.11498134,67368.0,67367.0,0.11]
[1729647345357,0.11498134,67368.0,67367.0,0.169408]
[1729647345961,0.421066,67393.0,67367.0,0.33120135]
[1729647346151,0.0002,67384.0,67375.0,0.059801]
[1729647346354,0.361,67384.0,67375.0,0.16106348]
[1729647346857,0.0265221,67381.0,67375.0,0.16106348]
[1729647353974,0.0517,67379.0,67375.0,0.16106348]
[1729647354173,0.1617,67379.0,67375.0,0.10414832]
[1729647354662,0.1617,67379.0,67375.0,0.059801]
[1729647361067,0.12965493,67376.0,67374.0,0.41310382]
[1729647361274,0.1134121,67375.0,67374.0,0.41170382]
[1729647362383,0.1134121,67375.0,67374.0,0.47110582]
[1729647364074,0.11238723,67375.0,67374.0,0.47110582]
[1729647368681,0.11245507,67375.0,67374.0,0.47110582]
[1729647369174,0.0002,67375.0,67374.0,0.47110582]
[1729647371671,0.0002,67375.0,67374.0,0.54501802]
[1729647373883,0.0002,67375.0,67374.0,0.47110582]
[1729647376185,0.06695597,67375.0,67374.0,0.530202]
[1729647376477,0.11253772,67375.0,67374.0,0.530202]
[1729647380177,0.11253772,67375.0,67374.0,1.085482]
[1729647381989,0.17909167,67375.0,67374.0,1.085482]
[1729647382183,0.21545722,67375.0,67374.0,1.085482]
[1729647382389,0.26103897,67375.0,67374.0,1.183842]
[1729647382595,0.26103897,67375.0,67374.0,1.073842]
[1729647382787,0.14870125,67375.0,67374.0,1.073842]
[1729647384295,0.14870125,67375.0,67374.0,1.434642]
[1729647385192,0.14870125,67375.0,67374.0,1.544642]
[1729647385491,0.14870125,67375.0,67374.0,1.434642]
[1729647387184,0.14870125,67375.0,67374.0,1.544642]
[1729647387585,0.14870125,67375.0,67374.0,1.434642]
[1729647388190,0.14870125,67375.0,67374.0,1.544642]
[1729647388787,0.14870125,67375.0,67374.0,1.76813198]
[1729647389891,0.14870125,67375.0,67374.0,1.544642]
[1729647390096,0.0002,67375.0,67374.0,1.544642]
[1729647391995,0.0002,67383.0,67374.0,1.48524]
[1729647392186,0.0002,67383.0,67382.0,0.530595]
[1729647399306,0.0002,67383.0,67382.0,0.55716657]
[1729647400201,0.0002,67383.0,67382.0,0.84278379]
[1729647400502,0.0002,67383.0,67382.0,0.769098]
[1729647401006,0.0002,67383.0,67382.0,0.659098]
[1729647401403,0.0002,67383.0,67382.0,0.65908409]
[1729647401598,0.1021,67390.0,67382.0,0.59968909]
[1729647401802,0.1021,67390.0,67383.0,0.16131152]
[1729647402003,0.1021,67390.0,67383.0,0.16171152]
[1729647406110,0.1021,67390.0,67383.0,0.16160882]
[1729647406610,0.1021,67390.0,67383.0,0.059794]
[1729647407409,0.1021,67390.0,67383.0,0.781394]
[1729647413315,0.1021,67390.0,67383.0,0.059794]
[1729647413704,0.19343843,67384.0,67383.0,0.781394]
[1729647414912,0.34186503,67384.0,67383.0,0.781394]
[1729647415111,0.27536782,67384.0,67383.0,0.781394]
[1729647415309,0.19343843,67384.0,67383.0,0.781394]
[1729647419913,0.27536782,67384.0,67383.0,0.781394]
[1729647420112,0.27536782,67384.0,67383.0,0.059794]
[1729647420315,0.19343843,67384.0,67383.0,0.781394]
[1729647420514,0.19343843,67384.0,67383.0,0.059794]
[1729647420515,0.03043123,67384.0,67383.0,0.059794]
[1729647420811,0.03043123,67384.0,67383.0,0.781394]
[1729647421213,0.0760029,67384.0,67383.0,0.781394]
[1729647421412,0.11236041,67384.0,67383.0,0.781394]
[1729647421619,0.0002,67384.0,67383.0,0.97177854]
[1729647422713,0.0002,67384.0,67383.0,1.07005854]
[1729647424218,0.0002,67384.0,67383.0,1.10313459]
[1729647424812,0.0002,67384.0,67383.0,1.21313459]
[1729647425013,0.0002,67384.0,67383.0,1.10313459]
[1729647427711,0.0002,67384.0,67383.0,1.00485459]
[1729647427908,0.0002,67384.0,67383.0,1.10320673]
[1729647428714,0.03040417,67384.0,67383.0,0.879674]
[1729647428916,0.11233326,67384.0,67383.0,0.879674]
[1729647429619,0.11233326,67384.0,67383.0,0.158074]
[1729647429918,0.11233326,67384.0,67383.0,0.989674]
[1729647430817,0.11233326,67384.0,67383.0,0.891394]
[1729647431123,0.11233326,67384.0,67383.0,0.989594]
[1729647432321,0.17896542,67384.0,67383.0,0.989594]
[1729647432521,0.17896542,67384.0,67383.0,0.891394]
[1729647432522,0.26089451,67384.0,67383.0,0.891394]
[1729647432825,0.26089451,67384.0,67383.0,0.989594]
[1729647434521,0.26089451,67384.0,67383.0,0.267994]
[1729647434824,0.11233326,67384.0,67383.0,0.267994]
[1729647435023,0.11233326,67384.0,67383.0,0.989594]
[1729647435213,0.11233326,67384.0,67383.0,0.267994]
[1729647435521,0.11233326,67384.0,67383.0,0.989594]
[1729647435823,0.11233326,67384.0,67383.0,0.267994]
[1729647436226,0.11233326,67384.0,67383.0,0.989594]
[1729647436419,0.11233326,67384.0,67383.0,0.267994]
[1729647436622,0.11233326,67384.0,67383.0,0.989594]
[1729647436817,0.11233326,67384.0,67383.0,1.21317925]
[1729647436818,0.0002,67384.0,67383.0,1.21317925]
[1729647437916,0.0002,67384.0,67383.0,0.49157925]
[1729647438117,0.0002,67384.0,67383.0,1.21317925]
[1729647439515,0.1021,67390.0,67389.0,0.059389]
[1729647439820,0.1021,67390.0,67389.0,0.74261991]
[1729647442924,0.1021,67390.0,67389.0,0.63261991]
[1729647443125,0.1021,67390.0,67389.0,0.74261991]
[1729647443326,0.1021,67390.0,67389.0,0.73081991]
[1729647443716,0.1021,67390.0,67389.0,0.628789]
[1729647444126,0.1021,67390.0,67389.0,0.738789]
[1729647444518,0.1021,67390.0,67389.0,0.377989]
[1729647444721,0.1021,67390.0,67389.0,0.738789]
[1729647444925,0.1021,67390.0,67389.0,0.628789]
[1729647445122,0.1021,67390.0,67389.0,0.4050989]
[1729647445318,0.1021,67390.0,67389.0,0.6558989]
[1729647447330,0.1021,67390.0,67389.0,0.2950989]
[1729647448028,0.1021,67390.0,67389.0,0.6558989]
[1729647451726,0.21447367,67390.0,67389.0,0.5370403]
[1729647452126,0.21447363,67390.0,67389.0,0.5370403]
[1729647452331,0.21447363,67390.0,67389.0,0.5964293]
[1729647453224,0.21447363,67390.0,67389.0,0.7064293]
[1729647453428,0.21447363,67390.0,67389.0,0.5964293]
[1729647453733,0.21447363,67390.0,67389.0,0.7064293]
[1729647453923,0.21447363,67390.0,67389.0,0.7654989]
[1729647454333,0.21447363,67390.0,67389.0,0.6554989]
[1729647454525,0.21447363,67390.0,67389.0,0.7654989]
[1729647454825,0.21447363,67390.0,67389.0,0.6554989]
[1729647455226,0.21447363,67390.0,67389.0,0.7654989]
[1729647456531,0.21447363,67390.0,67389.0,0.4046989]
[1729647456832,0.21366305,67390.0,67389.0,1.1262989]
[1729647457422,0.11156305,67390.0,67389.0,1.1262989]
[1729647458925,0.0004,67391.0,67390.0,0.059388]
[1729647459227,0.0004,67391.0,67390.0,0.781388]
[1729647464531,0.0004,67391.0,67390.0,0.059788]
[1729647464728,0.0004,67391.0,67390.0,0.781388]
[1729647464928,0.0004,67391.0,67390.0,0.059788]
[1729647465128,0.0004,67391.0,67390.0,0.781388]
[1729647465925,0.1652446,67391.0,67390.0,0.49911851]
[1729647466330,0.1652446,67391.0,67390.0,0.55850651]
[1729647466643,0.16524499,67391.0,67390.0,0.55850651]
[1729647466830,0.3582387,67391.0,67390.0,0.420188]
[1729647467628,0.11200029,67391.0,67390.0,0.420188]
[1729647467833,0.11200029,67391.0,67390.0,0.530188]
[1729647468338,0.11200029,67391.0,67390.0,0.420188]
[1729647468731,0.11200029,67391.0,67390.0,0.530188]
[1729647468932,0.11200029,67391.0,67390.0,0.059388]
[1729647469135,0.11200029,67391.0,67390.0,0.420188]
[1729647471143,0.11200029,67391.0,67390.0,0.059388]
[1729647471343,0.11200029,67391.0,67390.0,0.420188]
[1729647472335,0.11200029,67391.0,67390.0,0.059388]
[1729647472641,0.11200029,67391.0,67390.0,0.420188]
[1729647473040,0.11200029,67391.0,67390.0,0.059388]
[1729647473237,0.11200029,67391.0,67390.0,0.420188]
[1729647473642,0.11200029,67391.0,67390.0,0.059388]
[1729647473946,0.0004,67391.0,67390.0,0.420188]
[1729647474141,0.0004,67391.0,67390.0,0.530188]
[1729647474348,0.0004,67391.0,67390.0,0.420188]
[1729647475438,0.0004,67391.0,67390.0,0.530188]
[1729647477430,0.0004,67391.0,67390.0,0.57447615]
[1729647477848,0.0004,67391.0,67390.0,0.21367615]
[1729647478141,0.0004,67391.0,67390.0,0.169388]
[1729647478336,0.0004,67391.0,67390.0,0.21367542]
[1729647479042,0.0004,67391.0,67390.0,0.169388]
[1729647480946,0.06543517,67391.0,67390.0,0.11]
[1729647481135,0.11100588,67391.0,67390.0,0.11]
[1729647481446,0.11100588,67391.0,67390.0,0.169388]
[1729647481847,0.11100588,67391.0,67390.0,0.059388]
[1729647482240,0.11100588,67391.0,67390.0,0.169388]
[1729647483351,0.11100588,67391.0,67390.0,0.059388]
[1729647483549,0.11100588,67391.0,67390.0,0.169388]
[1729647486639,0.11100588,67391.0,67390.0,0.530188]
[1729647487043,0.11100588,67391.0,67390.0,0.420188]
[1729647487244,0.11100588,67391.0,67390.0,0.530188]
[1729647488054,0.11100588,67391.0,67390.0,0.47675897]
[1729647488253,0.11100588,67391.0,67390.0,0.36675897]
[1729647488550,0.11100588,67391.0,67390.0,0.42614697]
[1729647489055,0.19299371,67395.0,67394.0,0.059385]
[1729647489354,0.19299371,67395.0,67394.0,0.4011403]
[1729647493254,0.19299371,67395.0,67394.0,0.29667765]
[1729647493447,0.19299371,67395.0,67394.0,0.40313463]
[1729647497152,0.19299371,67395.0,67394.0,0.50645036]
[1729647497460,0.00163334,67396.0,67394.0,0.34374963]
[1729647497758,0.00163334,67396.0,67395.0,0.29313363]
[1729647497960,0.00163334,67396.0,67395.0,0.29278228]
[1729647504064,0.00163334,67396.0,67395.0,0.059784]
[1729647504455,0.03030933,67396.0,67395.0,0.059784]
[1729647510967,0.03030933,67396.0,67395.0,0.29269626]
[1729647510968,0.00163334,67396.0,67395.0,0.29269626]
[1729647511162,0.1041,67399.0,67398.0,0.059381]
[1729647511465,0.1041,67399.0,67398.0,0.40269326]
[1729647512464,0.1041,67399.0,67398.0,0.40271279]
[1729647514159,0.1041,67399.0,67398.0,0.42916218]
[1729647519058,0.11713285,67399.0,67398.0,0.19623039]
[1729647521271,0.06502964,67399.0,67398.0,0.19623039]
[1729647526075,0.3614,67403.0,67399.0,0.05938]
[1729647526278,0.3614,67403.0,67399.0,0.29169767]
[1729647526476,0.3614,67403.0,67399.0,0.29209767]
[1729647527179,0.3614,67403.0,67399.0,0.29210115]
[1729647531986,0.3614,67403.0,67399.0,0.29183913]
[1729647533983,0.32948286,67403.0,67402.0,0.059378]
[1729647534286,0.32948286,67403.0,67402.0,0.27564624]
[1729647534582,0.32948286,67403.0,67402.0,0.40145781]
[1729647535383,0.32948286,67403.0,67402.0,0.27564624]
[1729647535982,0.32948286,67403.0,67402.0,0.40147406]
[1729647536789,0.32948286,67403.0,67402.0,0.40093535]
[1729647537986,0.32948286,67403.0,67402.0,0.51093535]
[1729647538286,0.32948286,67403.0,67402.0,0.40093535]
[1729647539688,0.32948286,67403.0,67402.0,0.27523484]
[1729647540686,0.32948286,67403.0,67402.0,0.169778]
[1729647540991,0.32948286,67403.0,67402.0,0.2751326]
[1729647541187,0.35815719,67403.0,67402.0,0.169778]
[1729647541394,0.02867433,67403.0,67402.0,0.169778]
[1729647541899,0.13867433,67403.0,67402.0,0.059778]
[1729647542688,0.02867433,67403.0,67402.0,0.169778]
[1729647549203,0.059775,67406.0,67405.0,0.059375]
[1729647549398,0.059775,67406.0,67405.0,0.27511856]
[1729647554205,0.059775,67406.0,67405.0,0.169775]
[1729647554410,0.059775,67406.0,67405.0,0.27515781]
[1729647556110,0.059775,67406.0,67405.0,0.3023599]
[1729647556304,0.17036551,67406.0,67405.0,0.19697709]
[1729647560503,0.11099051,67406.0,67405.0,0.19697709]
[1729647563913,0.11099039,67406.0,67405.0,0.19697709]
[1729647564414,0.0004,67406.0,67405.0,0.42813627]
[1729647565906,0.0004,67406.0,67405.0,0.42817756]
[1729647567111,0.0004,67406.0,67405.0,0.3024536]
[1729647567414,0.36378589,67408.0,67407.0,0.059373]
[1729647567614,0.36302589,67408.0,67407.0,0.49869112]
[1729647569714,0.00222589,67408.0,67407.0,0.49869112]
[1729647570218,0.00222589,67408.0,67407.0,0.60869112]
[1729647570522,0.00222589,67408.0,67407.0,0.49869112]
[1729647570816,0.0002,67411.0,67410.0,0.059371]
[1729647571005,0.0002,67411.0,67410.0,0.40096912]
[1729647571411,0.14873027,67411.0,67410.0,0.279771]
[1729647571710,0.14873027,67411.0,67410.0,0.169771]
[1729647571711,0.25930361,67411.0,67410.0,0.169771]
[1729647572117,0.11077334,67411.0,67410.0,0.169771]
[1729647573219,0.11077334,67411.0,67410.0,0.221271]
[1729647573531,0.11077327,67411.0,67410.0,0.221271]
[1729647576822,0.11077327,67411.0,67410.0,0.331271]
[1729647577920,0.065216,67411.0,67410.0,0.331271]
[1729647578313,0.06521542,67411.0,67410.0,0.331271]
[1729647579026,0.06521542,67411.0,67410.0,0.221271]
[1729647579526,0.0002,67411.0,67410.0,0.32594675]
[1729647581726,0.0002,67411.0,67410.0,0.221271]
[1729647582027,0.0002,67411.0,67410.0,0.32594359]
[1729647583231,0.0002,67411.0,67410.0,0.45065681]
[1729647584027,0.0002,67411.0,67410.0,0.32594359]
[1729647586332,0.0002,67411.0,67410.0,0.221271]
[1729647586826,0.0002,67411.0,67410.0,0.111271]
[1729647587131,0.0002,67411.0,67410.0,0.221271]
[1729647591329,0.0002,67411.0,67410.0,0.169771]
[1729647592232,0.0002,67411.0,67410.0,0.24332399]
[1729647593237,0.0002,67411.0,67410.0,0.34790152]
[1729647594233,0.0002,67411.0,67410.0,0.27434853]
[1729647594430,0.02886963,67411.0,67410.0,0.169771]
[1729647594931,0.11077191,67411.0,67410.0,0.169771]
[1729647596231,0.27415521,67411.0,67410.0,0.169771]
[1729647597237,0.11077191,67411.0,67410.0,0.169771]
[1729647597830,0.11077191,67411.0,67410.0,0.267331]
[1729647598434,0.11077191,67411.0,67410.0,0.377331]
[1729647598638,0.17728515,67411.0,67410.0,0.267331]
[1729647599037,0.25918743,67411.0,67410.0,0.267331]
[1729647599331,0.11077191,67411.0,67410.0,0.267331]
[1729647600543,0.11077191,67411.0,67410.0,0.377331]
[1729647601334,0.0002,67411.0,67410.0,0.62673861]
[1729647601538,0.30901485,67416.0,67415.0,0.059366]
[1729647601739,0.30901485,67416.0,67415.0,0.50910188]
[1729647605345,0.30901485,67416.0,67415.0,0.50804119]
[1729647607353,0.30901485,67416.0,67415.0,0.53465278]
[1729647609347,0.41958134,67416.0,67415.0,0.30637759]
[1729647609549,0.06521201,67416.0,67415.0,0.30637759]
[1729647610948,0.06521201,67416.0,67415.0,0.40381759]
[1729647611264,0.0002,67419.0,67418.0,0.059363]
[1729647611442,0.04575302,67419.0,67418.0,0.169763]
[1729647611845,0.0002,67419.0,67418.0,0.169763]
[1729647612247,0.04575241,67419.0,67418.0,0.169763]
[1729647613749,0.04575241,67419.0,67418.0,0.059763]
[1729647613952,0.04575241,67419.0,67418.0,0.377203]
[1729647616451,0.00724592,67420.0,67418.0,0.54613018]
[1729647616651,0.00724592,67420.0,67419.0,0.28805318]
[1729647617761,0.00724592,67420.0,67419.0,0.38549318]
[1729647619655,0.00724592,67420.0,67419.0,0.38547678]
[1729647621459,0.00162116,67425.0,67424.0,0.059358]
[1729647621653,0.00162116,67425.0,67424.0,0.27389932]
[1729647623669,0.00162116,67425.0,67424.0,0.169758]
[1729647623853,0.00162116,67425.0,67424.0,0.22865194]
[1729647627967,0.00162116,67425.0,67424.0,0.25497479]
[1729647628267,0.00162116,67425.0,67424.0,0.19608085]
[1729647628867,0.00162116,67425.0,67424.0,0.2549922]
[1729647629063,0.00162116,67425.0,67424.0,0.19608085]
[1729647631562,0.03028716,67425.0,67424.0,0.19608085]
[1729647631771,0.11217909,67425.0,67424.0,0.19608085]
[1729647634175,0.11217909,67425.0,67424.0,0.08608085]
[1729647634670,0.11217909,67425.0,67424.0,0.19608085]
[1729647636269,0.11217909,67425.0,67422.0,0.0974]
[1729647636467,0.11055793,67424.0,67423.0,0.059359]
[1729647636776,0.11055793,67424.0,67423.0,0.169359]
[1729647638565,0.00162116,67425.0,67424.0,0.059358]
[1729647638766,0.00162116,67425.0,67424.0,0.13352894]
[1729647639166,0.00162116,67425.0,67424.0,0.059758]
[1729647640175,0.00162116,67425.0,67424.0,0.13352894]